[Event "Titled Tuesday Blitz February 28 Late 2023"]
[White "Alexakis, Dimitris"]
[Black "Bochnicka, Vladimir"]
[WhiteFideId "4277023"]
[BlackFideId "14943450"]
[WhiteElo "2493"]
[BlackElo "2094"]
[Result "1-0"]
[Round "01"]
[TimeControl "180+2"]
[Date "2023.02.28"]
[WhiteClock "0:00:11"]
[BlackClock "0:00:06"]

1. Nf3 {[%clk 0:02:59]}  Nf6 {[%clk 0:02:58]} 2. g3 {[%clk 0:02:58]}  g6 {[%clk 0:02:58]} 3. Bg2 {[%clk 0:02:59]}  Bg7 {[%clk 0:02:59]} 4. O-O {[%clk 0:02:59]}  O-O {[%clk 0:02:59]} 5. d4 {[%clk 0:03:00]}  d6 {[%clk 0:03:00]} 6. c4 {[%clk 0:02:59]}  Nc6 {[%clk 0:02:57]} 7. Nc3 {[%clk 0:02:57]}  Bf5 {[%clk 0:02:57]} 8. Re1 {[%clk 0:02:56]}  e5 {[%clk 0:02:55]} 9. e3 {[%clk 0:02:53]}  e4 {[%clk 0:02:48]} 10. Nd2 {[%clk 0:02:44]}  Re8 {[%clk 0:02:45]} 11. a3 {[%clk 0:02:39]}  a5 {[%clk 0:02:42]} 12. b3 {[%clk 0:02:14]}  Qd7 {[%clk 0:02:42]} 13. Qc2 {[%clk 0:02:13]}  Qe7 {[%clk 0:02:20]} 14. Bb2 {[%clk 0:02:10]}  Nb8 {[%clk 0:02:13]} 15. Rac1 {[%clk 0:02:09]}  Nbd7 {[%clk 0:02:13]} 16. Nb5 {[%clk 0:02:03]}  Rac8 {[%clk 0:02:10]} 17. Na7 {[%clk 0:01:45]}  Rb8 {[%clk 0:01:56]} 18. c5 {[%clk 0:01:41]}  dxc5 {[%clk 0:01:50]} 19. dxc5 {[%clk 0:01:42]}  c6 {[%clk 0:01:50]} 20. Nc4 {[%clk 0:01:19]}  Ra8 {[%clk 0:01:43]} 21. Nd6 {[%clk 0:01:18]}  Reb8 {[%clk 0:01:38]} 22. Nac8 {[%clk 0:01:09]}  Rxc8 {[%clk 0:01:37]} 23. Nxc8 {[%clk 0:01:10]}  Rxc8 {[%clk 0:01:38]} 24. b4 {[%clk 0:01:09]}  axb4 {[%clk 0:01:25]} 25. axb4 {[%clk 0:01:10]}  Ne5 {[%clk 0:01:23]} 26. Bxe5 {[%clk 0:01:08]}  Qxe5 {[%clk 0:01:24]} 27. Red1 {[%clk 0:01:09]}  Nd5 {[%clk 0:01:21]} 28. Qc4 {[%clk 0:01:06]}  Qb2 {[%clk 0:01:13]} 29. Rb1 {[%clk 0:00:58]}  Qc3 {[%clk 0:01:12]} 30. Qa2 {[%clk 0:00:53]}  Nxb4 {[%clk 0:01:12]} 31. Qa7 {[%clk 0:00:50]}  Nd3 {[%clk 0:01:00]} 32. Rxb7 {[%clk 0:00:50]}  Qc2 {[%clk 0:00:56]} 33. Rf1 {[%clk 0:00:50]}  Rf8 {[%clk 0:00:51]} 34. Rc7 {[%clk 0:00:42]}  Bh6 {[%clk 0:00:40]} 35. Qa3 {[%clk 0:00:17]}  Ne5 {[%clk 0:00:30]} 36. Qa1 {[%clk 0:00:13]}  Bg7 {[%clk 0:00:29]} 37. Qd1 {[%clk 0:00:10]}  Qa2 {[%clk 0:00:22]} 38. h3 {[%clk 0:00:09]}  Qe6 {[%clk 0:00:22]} 39. g4 {[%clk 0:00:08]}  Nxg4 {[%clk 0:00:19]} 40. hxg4 {[%clk 0:00:09]}  Bxg4 {[%clk 0:00:20]} 41. Qd6 {[%clk 0:00:09]}  Qf5 {[%clk 0:00:19]} 42. Qf4 {[%clk 0:00:09]}  Qh5 {[%clk 0:00:16]} 43. Qxe4 {[%clk 0:00:05]}  Be5 {[%clk 0:00:16]} 44. f3 {[%clk 0:00:05]}  Qh2+ {[%clk 0:00:14]} 45. Kf2 {[%clk 0:00:05]}  Bh3 {[%clk 0:00:13]} 46. Rg1 {[%clk 0:00:04]}  Bxc7 {[%clk 0:00:13]} 47. f4 {[%clk 0:00:03]}  Bxg2 {[%clk 0:00:11]} 48. Rxg2 {[%clk 0:00:04]}  Qh4+ {[%clk 0:00:12]} 49. Kf3 {[%clk 0:00:05]}  Rd8 {[%clk 0:00:12]} 50. Qxc6 {[%clk 0:00:05]}  Qh5+ {[%clk 0:00:09]} 51. Kg3 {[%clk 0:00:03]}  Rc8 {[%clk 0:00:07]} 52. Qd7 {[%clk 0:00:03]}  Qf5 {[%clk 0:00:05]} 53. Qxf5 {[%clk 0:00:04]}  gxf5 {[%clk 0:00:06]} 54. Kf3+ {[%clk 0:00:04]}  Kf8 {[%clk 0:00:06]} 55. Rg5 {[%clk 0:00:05]}  Ke7 {[%clk 0:00:06]} 56. Rxf5 {[%clk 0:00:06]}  Ke6 {[%clk 0:00:06]} 57. Rh5 {[%clk 0:00:07]}  Rh8 {[%clk 0:00:06]} 58. e4 {[%clk 0:00:07]}  Bd8 {[%clk 0:00:06]} 59. Rd5 {[%clk 0:00:07]}  Be7 {[%clk 0:00:05]} 60. f5+ {[%clk 0:00:07]}  Kf6 {[%clk 0:00:05]} 61. Kf4 {[%clk 0:00:08]}  Rc8 {[%clk 0:00:04]} 62. e5+ {[%clk 0:00:08]}  Kg7 {[%clk 0:00:04]} 63. f6+ {[%clk 0:00:09]}  Bxf6 {[%clk 0:00:05]} 64. exf6+ {[%clk 0:00:10]}  Kxf6 {[%clk 0:00:06]} 65. Rd6+ {[%clk 0:00:10]}  Kg7 {[%clk 0:00:05]} 66. c6 {[%clk 0:00:09]}  h5 {[%clk 0:00:05]} 67. Kg5 {[%clk 0:00:10]}  Rh8 {[%clk 0:00:05]} 68. c7 {[%clk 0:00:10]}  Rc8 {[%clk 0:00:04]} 69. Rd7 {[%clk 0:00:10]}  Kf8 {[%clk 0:00:04]} 70. Rd8+ {[%clk 0:00:10]}  Ke7 {[%clk 0:00:05]} 71. Rxc8 {[%clk 0:00:10]}  Kd7 {[%clk 0:00:06]} 72. Rf8 {[%clk 0:00:11]} 1-0


[Site "https://www.chess.com"]

[Event "Titled Tuesday Blitz February 28 Late 2023"]
[White "Real_OceanStorm"]
[Black "Seletsky, Grigory"]
[BlackFideId "14112191"]
[WhiteElo "2773"]
[BlackElo "2490"]
[Result "1-0"]
[Round "01"]
[TimeControl "180+2"]
[Date "2023.02.28"]
[WhiteClock "0:00:16"]
[BlackClock "0:00:12"]

1. e4 {[%clk 0:03:00]}  c6 {[%clk 0:02:58]} 2. d4 {[%clk 0:03:00]}  d5 {[%clk 0:02:57]} 3. e5 {[%clk 0:03:00]}  Bf5 {[%clk 0:02:56]} 4. Nf3 {[%clk 0:03:01]}  e6 {[%clk 0:02:55]} 5. c4 {[%clk 0:03:01]}  Ne7 {[%clk 0:02:53]} 6. Nc3 {[%clk 0:03:01]}  h6 {[%clk 0:02:52]} 7. Rg1 {[%clk 0:03:00]}  a6 {[%clk 0:02:48]} 8. c5 {[%clk 0:03:00]}  Nd7 {[%clk 0:02:48]} 9. g4 {[%clk 0:03:00]}  Bh7 {[%clk 0:02:45]} 10. h4 {[%clk 0:03:01]}  b6 {[%clk 0:02:41]} 11. cxb6 {[%clk 0:02:54]}  Qxb6 {[%clk 0:02:41]} 12. Na4 {[%clk 0:02:36]}  Qb7 {[%clk 0:02:38]} 13. Bd2 {[%clk 0:02:36]}  Nc8 {[%clk 0:02:36]} 14. Rc1 {[%clk 0:02:35]}  Be7 {[%clk 0:02:27]} 15. Rc3 {[%clk 0:02:19]}  Na7 {[%clk 0:02:25]} 16. Rb3 {[%clk 0:02:19]}  Nb5 {[%clk 0:02:25]} 17. g5 {[%clk 0:02:09]}  h5 {[%clk 0:02:24]} 18. Nc3 {[%clk 0:01:53]}  Qa7 {[%clk 0:02:17]} 19. Be3 {[%clk 0:01:52]}  Bf5 {[%clk 0:02:13]} 20. Bd3 {[%clk 0:01:36]}  Bxd3 {[%clk 0:02:11]} 21. Qxd3 {[%clk 0:01:36]}  g6 {[%clk 0:02:11]} 22. Kf1 {[%clk 0:01:20]}  O-O {[%clk 0:02:11]} 23. Kg2 {[%clk 0:01:20]}  Rab8 {[%clk 0:02:05]} 24. Rc1 {[%clk 0:01:20]}  Rfc8 {[%clk 0:01:59]} 25. Na4 {[%clk 0:01:17]}  Bf8 {[%clk 0:01:48]} 26. Qd2 {[%clk 0:01:15]}  a5 {[%clk 0:01:28]} 27. Qe2 {[%clk 0:00:51]}  Rb7 {[%clk 0:01:00]} 28. Nc3 {[%clk 0:00:45]}  Nxc3 {[%clk 0:00:54]} 29. Rbxc3 {[%clk 0:00:45]}  Nb8 {[%clk 0:00:48]} 30. R3c2 {[%clk 0:00:45]}  a4 {[%clk 0:00:44]} 31. Ne1 {[%clk 0:00:43]}  Rcc7 {[%clk 0:00:41]} 32. Nd3 {[%clk 0:00:43]}  Rb5 {[%clk 0:00:33]} 33. f4 {[%clk 0:00:34]}  Rcb7 {[%clk 0:00:33]} 34. Rb1 {[%clk 0:00:33]}  R7b6 {[%clk 0:00:31]} 35. Bd2 {[%clk 0:00:26]}  Qb7 {[%clk 0:00:32]} 36. Rbc1 {[%clk 0:00:25]}  Be7 {[%clk 0:00:28]} 37. f5 {[%clk 0:00:17]}  exf5 {[%clk 0:00:26]} 38. e6 {[%clk 0:00:18]}  Bd6 {[%clk 0:00:23]} 39. Bf4 {[%clk 0:00:18]}  Bxf4 {[%clk 0:00:20]} 40. e7 {[%clk 0:00:16]}  Bxc1 {[%clk 0:00:12]} 41. e8=Q+ {[%clk 0:00:16]}  Kh7 {[%clk 0:00:12]} 42. Q2e5 {[%clk 0:00:16]} 1-0


[Site "https://www.chess.com"]

[Event "Titled Tuesday Blitz February 28 Late 2023"]
[White "Ponce Cano, Adrian"]
[Black "Beerdsen, Thomas"]
[WhiteFideId "22296913"]
[BlackFideId "1030108"]
[WhiteElo "2211"]
[BlackElo "2547"]
[Result "1-0"]
[Round "01"]
[TimeControl "180+2"]
[Date "2023.02.28"]
[WhiteClock "0:00:16"]
[BlackClock "0:00:02"]

1. e4 {[%clk 0:02:57]}  c5 {[%clk 0:02:54]} 2. Nf3 {[%clk 0:02:57]}  Nc6 {[%clk 0:02:55]} 3. c3 {[%clk 0:02:57]}  e5 {[%clk 0:02:52]} 4. Bc4 {[%clk 0:02:56]}  d6 {[%clk 0:02:51]} 5. h3 {[%clk 0:02:56]}  Be7 {[%clk 0:02:50]} 6. O-O {[%clk 0:02:56]}  Nf6 {[%clk 0:02:50]} 7. Re1 {[%clk 0:02:57]}  h6 {[%clk 0:02:49]} 8. d4 {[%clk 0:02:57]}  g5 {[%clk 0:02:46]} 9. dxe5 {[%clk 0:02:56]}  dxe5 {[%clk 0:02:45]} 10. Qb3 {[%clk 0:02:56]}  Na5 {[%clk 0:02:35]} 11. Bb5+ {[%clk 0:02:52]}  Kf8 {[%clk 0:02:30]} 12. Qc2 {[%clk 0:02:44]}  a6 {[%clk 0:02:25]} 13. Bf1 {[%clk 0:02:42]}  Nc6 {[%clk 0:02:23]} 14. Be3 {[%clk 0:02:38]}  g4 {[%clk 0:02:21]} 15. hxg4 {[%clk 0:02:37]}  Bxg4 {[%clk 0:02:22]} 16. Nbd2 {[%clk 0:02:37]}  Qc7 {[%clk 0:02:17]} 17. Nh2 {[%clk 0:02:32]}  Be6 {[%clk 0:02:14]} 18. Rad1 {[%clk 0:02:31]}  b5 {[%clk 0:02:11]} 19. a3 {[%clk 0:02:27]}  Kg7 {[%clk 0:02:07]} 20. Ndf3 {[%clk 0:02:25]}  Rag8 {[%clk 0:02:04]} 21. Nh4 {[%clk 0:02:25]}  Kh7 {[%clk 0:02:04]} 22. Nf5 {[%clk 0:02:24]}  Bxf5 {[%clk 0:01:59]} 23. exf5 {[%clk 0:02:25]}  e4 {[%clk 0:01:55]} 24. g3 {[%clk 0:02:17]}  Bd6 {[%clk 0:01:51]} 25. Bg2 {[%clk 0:02:03]}  h5 {[%clk 0:01:45]} 26. Qd2 {[%clk 0:01:57]}  Be5 {[%clk 0:01:34]} 27. Bxc5 {[%clk 0:01:41]}  h4 {[%clk 0:01:35]} 28. Bd6 {[%clk 0:01:33]}  Qb6 {[%clk 0:01:26]} 29. Bxe5 {[%clk 0:01:29]}  Nxe5 {[%clk 0:01:27]} 30. Qd6 {[%clk 0:01:23]}  Qxd6 {[%clk 0:01:28]} 31. Rxd6 {[%clk 0:01:23]}  hxg3 {[%clk 0:01:28]} 32. fxg3 {[%clk 0:01:20]}  Kg7 {[%clk 0:01:25]} 33. Nf1 {[%clk 0:01:18]}  Rd8 {[%clk 0:01:17]} 34. Rxd8 {[%clk 0:01:16]}  Rxd8 {[%clk 0:01:18]} 35. Bxe4 {[%clk 0:01:16]}  Nc4 {[%clk 0:01:17]} 36. Bb7 {[%clk 0:01:11]}  Rd6 {[%clk 0:01:09]} 37. b3 {[%clk 0:01:06]}  Nxa3 {[%clk 0:01:09]} 38. Ra1 {[%clk 0:01:06]}  Nc2 {[%clk 0:01:07]} 39. Ra2 {[%clk 0:01:03]}  Ne1 {[%clk 0:01:02]} 40. Rxa6 {[%clk 0:01:03]}  Rd1 {[%clk 0:01:01]} 41. Kf2 {[%clk 0:00:53]}  Rc1 {[%clk 0:00:50]} 42. Ne3 {[%clk 0:00:43]}  Rxc3 {[%clk 0:00:48]} 43. Rxf6 {[%clk 0:00:39]}  Nd3+ {[%clk 0:00:34]} 44. Ke2 {[%clk 0:00:28]}  Nc1+ {[%clk 0:00:33]} 45. Kd2 {[%clk 0:00:29]}  Rxe3 {[%clk 0:00:34]} 46. Rxf7+ {[%clk 0:00:27]}  Kxf7 {[%clk 0:00:34]} 47. Kxe3 {[%clk 0:00:28]}  Kf6 {[%clk 0:00:32]} 48. g4 {[%clk 0:00:28]}  Nxb3 {[%clk 0:00:33]} 49. Kf4 {[%clk 0:00:25]}  Nc5 {[%clk 0:00:27]} 50. g5+ {[%clk 0:00:25]}  Kg7 {[%clk 0:00:23]} 51. f6+ {[%clk 0:00:23]}  Kg6 {[%clk 0:00:22]} 52. Be4+ {[%clk 0:00:21]}  Kf7 {[%clk 0:00:23]} 53. Kf5 {[%clk 0:00:19]}  Kf8 {[%clk 0:00:01]} 54. g6 {[%clk 0:00:18]}  Nd7 {[%clk 0:00:02]} 55. g7+ {[%clk 0:00:16]} 1-0


[Site "https://www.chess.com"]

[Event "Titled Tuesday Blitz February 28 Late 2023"]
[White "Milikow, Yoav"]
[Black "Sivakumar, Shaaketh"]
[WhiteFideId "2822237"]
[BlackFideId "30940176"]
[WhiteElo "2410"]
[BlackElo "2174"]
[Result "1-0"]
[Round "01"]
[TimeControl "180+2"]
[Date "2023.02.28"]
[WhiteClock "0:00:05"]
[BlackClock "0:00:07"]

1. d4 {[%clk 0:02:59]}  e6 {[%clk 0:02:54]} 2. c4 {[%clk 0:02:58]}  b6 {[%clk 0:02:54]} 3. e4 {[%clk 0:02:58]}  Bb4+ {[%clk 0:02:53]} 4. Bd2 {[%clk 0:02:56]}  Bxd2+ {[%clk 0:02:46]} 5. Qxd2 {[%clk 0:02:54]}  d5 {[%clk 0:02:47]} 6. Nc3 {[%clk 0:02:48]}  Ne7 {[%clk 0:02:44]} 7. Nf3 {[%clk 0:02:46]}  O-O {[%clk 0:02:34]} 8. Bd3 {[%clk 0:02:39]}  Ba6 {[%clk 0:02:34]} 9. cxd5 {[%clk 0:02:36]}  Bxd3 {[%clk 0:02:34]} 10. Qxd3 {[%clk 0:02:37]}  exd5 {[%clk 0:02:34]} 11. e5 {[%clk 0:02:32]}  c5 {[%clk 0:02:34]} 12. O-O {[%clk 0:02:32]}  c4 {[%clk 0:02:32]} 13. Qd2 {[%clk 0:02:24]}  Qd7 {[%clk 0:02:33]} 14. Rfe1 {[%clk 0:02:24]}  Nbc6 {[%clk 0:02:30]} 15. Ne2 {[%clk 0:02:12]}  Nd8 {[%clk 0:02:29]} 16. Nf4 {[%clk 0:02:09]}  Ne6 {[%clk 0:02:28]} 17. Nh5 {[%clk 0:02:08]}  Ng6 {[%clk 0:02:24]} 18. Rac1 {[%clk 0:02:02]}  b5 {[%clk 0:02:24]} 19. Qe3 {[%clk 0:01:56]}  b4 {[%clk 0:02:24]} 20. Nd2 {[%clk 0:01:56]}  Qe7 {[%clk 0:02:19]} 21. Nf3 {[%clk 0:01:35]}  a5 {[%clk 0:02:15]} 22. h3 {[%clk 0:01:28]}  a4 {[%clk 0:02:14]} 23. Ng3 {[%clk 0:01:27]}  Nh4 {[%clk 0:02:09]} 24. Nh2 {[%clk 0:01:21]}  a3 {[%clk 0:02:05]} 25. b3 {[%clk 0:01:20]}  cxb3 {[%clk 0:02:05]} 26. Qxb3 {[%clk 0:01:20]}  Nxd4 {[%clk 0:02:02]} 27. Qxd5 {[%clk 0:01:19]}  Rfd8 {[%clk 0:02:03]} 28. Qe4 {[%clk 0:01:19]}  b3 {[%clk 0:01:58]} 29. Ng4 {[%clk 0:01:10]}  b2 {[%clk 0:01:52]} 30. Rcd1 {[%clk 0:01:08]}  Ne6 {[%clk 0:01:48]} 31. Kh2 {[%clk 0:01:02]}  Rxd1 {[%clk 0:01:43]} 32. Rxd1 {[%clk 0:01:00]}  Rd8 {[%clk 0:01:42]} 33. Rb1 {[%clk 0:00:55]}  Rd4 {[%clk 0:01:38]} 34. Qa8+ {[%clk 0:00:54]}  Qd8 {[%clk 0:01:39]} 35. Qxa3 {[%clk 0:00:53]}  Qd5 {[%clk 0:01:31]} 36. Ne3 {[%clk 0:00:51]}  Qxe5 {[%clk 0:01:27]} 37. Rxb2 {[%clk 0:00:47]}  h5 {[%clk 0:01:17]} 38. Rb4 {[%clk 0:00:41]}  Rxb4 {[%clk 0:01:07]} 39. Qxb4 {[%clk 0:00:42]}  Ng6 {[%clk 0:01:07]} 40. Qe4 {[%clk 0:00:36]}  Qb2 {[%clk 0:01:04]} 41. Nxh5 {[%clk 0:00:30]}  Qxf2 {[%clk 0:01:05]} 42. a4 {[%clk 0:00:28]}  Ng5 {[%clk 0:00:59]} 43. Qa8+ {[%clk 0:00:10]}  Kh7 {[%clk 0:00:59]} 44. Ng4 {[%clk 0:00:10]}  Qe2 {[%clk 0:00:50]} 45. Ng3 {[%clk 0:00:09]}  Qc2 {[%clk 0:00:43]} 46. Ne3 {[%clk 0:00:06]}  Qf2 {[%clk 0:00:41]} 47. Ng4 {[%clk 0:00:05]}  Qd2 {[%clk 0:00:39]} 48. Qa6 {[%clk 0:00:03]}  Nf3+ {[%clk 0:00:33]} 49. Kh1 {[%clk 0:00:03]}  Ngh4 {[%clk 0:00:26]} 50. Qf1 {[%clk 0:00:04]}  Ng5 {[%clk 0:00:20]} 51. a5 {[%clk 0:00:04]}  Qxa5 {[%clk 0:00:19]} 52. Nf2 {[%clk 0:00:04]}  Qd5 {[%clk 0:00:19]} 53. Nd3 {[%clk 0:00:03]}  g6 {[%clk 0:00:16]} 54. Nf4 {[%clk 0:00:03]}  Qa2 {[%clk 0:00:15]} 55. Nd3 {[%clk 0:00:02]}  Kg7 {[%clk 0:00:14]} 56. Ne5 {[%clk 0:00:02]}  f6 {[%clk 0:00:13]} 57. Ng4 {[%clk 0:00:03]}  Qb2 {[%clk 0:00:11]} 58. Nf2 {[%clk 0:00:03]}  Ne6 {[%clk 0:00:11]} 59. Ng4 {[%clk 0:00:03]}  g5 {[%clk 0:00:10]} 60. Ne3 {[%clk 0:00:03]}  Nf4 {[%clk 0:00:09]} 61. Nef5+ {[%clk 0:00:04]}  Nxf5 {[%clk 0:00:09]} 62. Nxf5+ {[%clk 0:00:05]}  Kg6 {[%clk 0:00:10]} 63. Ng3 {[%clk 0:00:05]}  Qc3 {[%clk 0:00:10]} 64. Kh2 {[%clk 0:00:04]}  Qc2 {[%clk 0:00:09]} 65. Qf3 {[%clk 0:00:04]}  Kh6 {[%clk 0:00:09]} 66. Qa8 {[%clk 0:00:05]}  Qg6 {[%clk 0:00:08]} 67. Qh8+ {[%clk 0:00:04]}  Qh7 {[%clk 0:00:08]} 68. Qxf6+ {[%clk 0:00:05]}  Ng6 {[%clk 0:00:06]} 69. Nf5+ {[%clk 0:00:05]}  Kh5 {[%clk 0:00:07]} 70. g4# {[%clk 0:00:05]} 1-0


[Site "https://www.chess.com"]

[Event "Titled Tuesday Blitz February 28 Late 2023"]
[White "Pakleza, Zbigniew"]
[Black "Rottenwohrer Suarez, Juan"]
[WhiteFideId "1119290"]
[BlackFideId "32068182"]
[WhiteElo "2410"]
[BlackElo "2174"]
[Result "1-0"]
[Round "01"]
[TimeControl "180+2"]
[Date "2023.02.28"]
[WhiteClock "0:01:23"]
[BlackClock "0:01:40"]

1. d4 {[%clk 0:03:00]}  Nf6 {[%clk 0:02:46]} 2. Nf3 {[%clk 0:03:01]}  g6 {[%clk 0:02:47]} 3. Bf4 {[%clk 0:03:01]}  Bg7 {[%clk 0:02:48]} 4. e3 {[%clk 0:03:01]}  c5 {[%clk 0:02:44]} 5. c3 {[%clk 0:03:01]}  b6 {[%clk 0:02:33]} 6. Nbd2 {[%clk 0:03:00]}  d6 {[%clk 0:02:30]} 7. h3 {[%clk 0:02:59]}  O-O {[%clk 0:02:31]} 8. a4 {[%clk 0:02:58]}  a6 {[%clk 0:02:31]} 9. Be2 {[%clk 0:02:57]}  Bb7 {[%clk 0:02:31]} 10. O-O {[%clk 0:02:57]}  Nbd7 {[%clk 0:02:32]} 11. Bh2 {[%clk 0:02:56]}  Qc7 {[%clk 0:02:33]} 12. Qb3 {[%clk 0:02:55]}  Bc6 {[%clk 0:02:31]} 13. Rfe1 {[%clk 0:02:46]}  b5 {[%clk 0:02:31]} 14. axb5 {[%clk 0:02:24]}  axb5 {[%clk 0:02:32]} 15. Qc2 {[%clk 0:02:00]}  Rxa1 {[%clk 0:02:26]} 16. Rxa1 {[%clk 0:02:00]}  Rb8 {[%clk 0:02:27]} 17. e4 {[%clk 0:01:57]}  e5 {[%clk 0:02:12]} 18. d5 {[%clk 0:01:52]}  Ba8 {[%clk 0:02:02]} 19. Bxb5 {[%clk 0:01:47]}  h6 {[%clk 0:01:46]} 20. Bf1 {[%clk 0:01:36]}  Nh5 {[%clk 0:01:46]} 21. Nc4 {[%clk 0:01:33]}  Bb7 {[%clk 0:01:44]} 22. Ra7 {[%clk 0:01:28]}  Ra8 {[%clk 0:01:41]} 23. Rxa8+ {[%clk 0:01:25]}  Bxa8 {[%clk 0:01:42]} 24. Qa4 {[%clk 0:01:26]}  Bb7 {[%clk 0:01:40]} 25. Qa7 {[%clk 0:01:23]} 1-0


[Site "https://www.chess.com"]

[Event "Titled Tuesday Blitz February 28 Late 2023"]
[White "Backsten, Jan"]
[Black "Fier, Alexandr"]
[WhiteFideId "1735381"]
[BlackFideId "2107139"]
[WhiteElo "1967"]
[BlackElo "2610"]
[Result "0-1"]
[Round "01"]
[TimeControl "180+2"]
[Date "2023.02.28"]
[WhiteClock "0:00:15"]
[BlackClock "0:01:53"]

1. e4 {[%clk 0:02:59]}  e5 {[%clk 0:03:00]} 2. Nf3 {[%clk 0:02:59]}  Nc6 {[%clk 0:03:00]} 3. Bc4 {[%clk 0:02:57]}  Bc5 {[%clk 0:03:00]} 4. O-O {[%clk 0:02:53]}  Nf6 {[%clk 0:02:59]} 5. d4 {[%clk 0:02:54]}  Bxd4 {[%clk 0:02:57]} 6. Nxd4 {[%clk 0:02:54]}  Nxd4 {[%clk 0:02:57]} 7. f4 {[%clk 0:02:55]}  d6 {[%clk 0:02:57]} 8. fxe5 {[%clk 0:02:55]}  dxe5 {[%clk 0:02:57]} 9. Bg5 {[%clk 0:02:56]}  Qe7 {[%clk 0:02:57]} 10. Na3 {[%clk 0:02:51]}  Be6 {[%clk 0:02:57]} 11. c3 {[%clk 0:02:09]}  Nc6 {[%clk 0:02:49]} 12. Kh1 {[%clk 0:02:07]}  h6 {[%clk 0:02:40]} 13. Bxf6 {[%clk 0:02:05]}  gxf6 {[%clk 0:02:41]} 14. Qf3 {[%clk 0:02:02]}  Rd8 {[%clk 0:02:38]} 15. Rad1 {[%clk 0:01:54]}  Rxd1 {[%clk 0:02:26]} 16. Rxd1 {[%clk 0:01:55]}  h5 {[%clk 0:02:24]} 17. Bb5 {[%clk 0:01:21]}  Bg4 {[%clk 0:02:21]} 18. Qd3 {[%clk 0:00:56]}  Bxd1 {[%clk 0:02:18]} 19. Qxd1 {[%clk 0:00:57]}  Qc5 {[%clk 0:02:15]} 20. Qf3 {[%clk 0:00:54]}  Ke7 {[%clk 0:02:10]} 21. Be2 {[%clk 0:00:46]}  Qd6 {[%clk 0:02:07]} 22. Nc4 {[%clk 0:00:40]}  Qe6 {[%clk 0:02:06]} 23. Ne3 {[%clk 0:00:38]}  Kd8 {[%clk 0:02:04]} 24. Bc4 {[%clk 0:00:36]}  Qd6 {[%clk 0:02:04]} 25. Qe2 {[%clk 0:00:28]}  Kc8 {[%clk 0:02:02]} 26. Bxf7 {[%clk 0:00:28]}  Kb8 {[%clk 0:02:02]} 27. Bxh5 {[%clk 0:00:27]}  a6 {[%clk 0:02:02]} 28. Bf7 {[%clk 0:00:26]}  Ne7 {[%clk 0:02:01]} 29. Bc4 {[%clk 0:00:25]}  Qd7 {[%clk 0:02:01]} 30. g3 {[%clk 0:00:23]}  f5 {[%clk 0:02:01]} 31. exf5 {[%clk 0:00:20]}  Nxf5 {[%clk 0:02:02]} 32. Nxf5 {[%clk 0:00:20]}  Qxf5 {[%clk 0:02:03]} 33. Bd5 {[%clk 0:00:21]}  Qg5 {[%clk 0:01:57]} 34. Bg2 {[%clk 0:00:21]}  Qxg3 {[%clk 0:01:55]} 35. h3 {[%clk 0:00:15]}  c6 {[%clk 0:01:53]} 0-1


[Site "https://www.chess.com"]

[Event "Titled Tuesday Blitz February 28 Late 2023"]
[White "Sanchez, Robert"]
[Black "Quispe Arteaga, Gabriel"]
[WhiteFideId "2034360"]
[BlackFideId "32059809"]
[WhiteElo "2432"]
[BlackElo "2274"]
[Result "1/2-1/2"]
[Round "01"]
[TimeControl "180+2"]
[Date "2023.02.28"]
[WhiteClock "0:01:28"]
[BlackClock "0:02:22"]

1. e4 {[%clk 0:03:00]}  c5 {[%clk 0:02:58]} 2. Nf3 {[%clk 0:03:01]}  e6 {[%clk 0:02:59]} 3. d4 {[%clk 0:03:01]}  cxd4 {[%clk 0:03:00]} 4. Nxd4 {[%clk 0:03:02]}  Nf6 {[%clk 0:03:00]} 5. Nc3 {[%clk 0:03:02]}  Nc6 {[%clk 0:03:01]} 6. Ndb5 {[%clk 0:03:01]}  Bb4 {[%clk 0:03:01]} 7. a3 {[%clk 0:03:02]}  Bxc3+ {[%clk 0:03:02]} 8. Nxc3 {[%clk 0:03:02]}  d5 {[%clk 0:03:02]} 9. exd5 {[%clk 0:03:03]}  exd5 {[%clk 0:03:03]} 10. Bd3 {[%clk 0:03:03]}  O-O {[%clk 0:03:04]} 11. O-O {[%clk 0:03:03]}  d4 {[%clk 0:03:05]} 12. Ne4 {[%clk 0:02:58]}  Bf5 {[%clk 0:03:05]} 13. Bg5 {[%clk 0:02:50]}  Bxe4 {[%clk 0:03:06]} 14. Bxe4 {[%clk 0:02:49]}  Qd6 {[%clk 0:03:06]} 15. Bd3 {[%clk 0:02:48]}  Ne5 {[%clk 0:03:04]} 16. h3 {[%clk 0:02:40]}  Rac8 {[%clk 0:03:00]} 17. Re1 {[%clk 0:02:36]}  Nxd3 {[%clk 0:02:55]} 18. Qxd3 {[%clk 0:02:32]}  h6 {[%clk 0:02:56]} 19. Bxf6 {[%clk 0:02:31]}  Qxf6 {[%clk 0:02:56]} 20. Rad1 {[%clk 0:02:27]}  Rfd8 {[%clk 0:02:31]} 21. Re4 {[%clk 0:02:24]}  Rc6 {[%clk 0:02:31]} 22. c3 {[%clk 0:02:13]}  Rb6 {[%clk 0:02:31]} 23. b4 {[%clk 0:02:06]}  Rc8 {[%clk 0:02:31]} 24. Rxd4 {[%clk 0:02:03]}  g6 {[%clk 0:02:32]} 25. c4 {[%clk 0:01:58]}  Kg7 {[%clk 0:02:31]} 26. c5 {[%clk 0:01:58]}  Re6 {[%clk 0:02:32]} 27. Rd6 {[%clk 0:01:54]}  b6 {[%clk 0:02:24]} 28. Rxe6 {[%clk 0:01:42]}  Qxe6 {[%clk 0:02:24]} 29. cxb6 {[%clk 0:01:37]}  axb6 {[%clk 0:02:21]} 30. Qd6 {[%clk 0:01:28]}  Qxd6 {[%clk 0:02:21]} 31. Rxd6 {[%clk 0:01:28]}  Ra8 {[%clk 0:02:22]} 32. Rxb6 {[%clk 0:01:28]}  Rxa3 {[%clk 0:02:22]} 33. g3 {[%clk 0:01:28]} 1/2-1/2


[Site "https://www.chess.com"]